fUSD/lending_fUSD_20260407
["ID","MTS","AMOUNT","RATE_DAILY","PERIOD"]
[419981638,1775582157727,-1000.0,0.00046769,120]
[419981639,1775582157754,-2000.0,0.00046769,120]
[419981640,1775582157781,-1000.0,0.00046769,30]
[419981641,1775582157808,-2004.92,0.00046769,120]
[419981642,1775582158130,-240.20473907,0.00046769,120]
[419981643,1775582158160,-52845.0,0.00046769,120]
[419981644,1775582158189,-50000.0,0.00046769,120]
[419981645,1775582158217,-50000.0,0.00046769,120]
[419981646,1775582158246,-14646.36,0.00046769,30]
[419981647,1775582158275,-500.0,0.00046769,120]
[419981648,1775582158304,-500.0,0.00046769,120]
[419981649,1775582158332,-500.0,0.00046769,120]
[419981650,1775582158360,-500.0,0.00046769,120]
[419981651,1775582158389,-594.91220026,0.00046769,120]
[419981652,1775582158421,-1000000.0,0.00046769,120]
[419981653,1775582158452,-255790.37711282,0.00046769,120]
[419981654,1775582161822,-300.0,0.00011806,2]
[419981655,1775582161846,-1200.0,0.00011806,2]
[419981656,1775582161869,-150.0,0.00011806,2]
[419981657,1775582161891,-300.0,0.00011806,2]
[419981658,1775582161914,-250.0,0.00011807,2]
[419981659,1775582161937,-48800.0,0.00011807,2]
[419981667,1775582221133,300.0,0.00011806,2]
[419981671,1775582251699,-106012.46758007,0.00011807,2]
[419981672,1775582251722,-5000.0,0.00011942,2]
[419981673,1775582251746,-283.82399067,0.00012077,2]
[419981674,1775582251767,-5000.0,0.00012084,2]
[419981675,1775582251790,-3703.70842926,0.00012084,2]
[419981691,1775582282613,2100.76,0.00011507,2]
[419981692,1775582297592,500.0,0.00011806,2]
[419981693,1775582297648,500.0,0.00011806,2]
[419981694,1775582297705,389.54793285,0.00011806,2]
[419981695,1775582302118,150.0,0.00011721,2]
[419981700,1775582317198,189.53634954,0.00011806,2]
[419981701,1775582329803,2969.46,6.661e-05,2]
[419981702,1775582330011,2900.70571761,7.012e-05,2]
[419981703,1775582330043,68.75428239,7.012e-05,2]
[419981704,1775582330210,2969.46,7.363e-05,2]
[419981705,1775582330406,2969.46,7.713e-05,2]
[419981706,1775582330605,2969.46,8.064e-05,2]
[419981707,1775582330821,1022.87571761,8.414e-05,2]
[419981708,1775582330848,1946.58428239,8.414e-05,2]
[419981709,1775582331015,2969.46,8.765e-05,2]
[419981710,1775582331217,2969.46,9.116e-05,2]
[419981711,1775582331424,2114.50571761,9.466e-05,2]
[419981712,1775582331452,854.95428239,9.466e-05,2]
[419981713,1775582331623,2969.46,9.817e-05,2]
[419981714,1775582331844,2969.46,0.00010167,2]
[419981715,1775582332057,2969.46,0.00010518,2]
[419981716,1775582332244,236.67571761,0.00011706,2]
[419981717,1775582332275,10000.01,0.00011706,2]
[419981718,1775582332306,10000.01,0.00011706,2]
[419981719,1775582332336,10000.01,0.00011706,2]
[419981723,1775582454581,-2969.46,0.00010869,2]
[419981724,1775582454616,-1091.63,0.00011219,2]
[419981725,1775582457456,-1877.83,0.00011219,2]
[419981726,1775582457489,-1200.0,0.00011569,2]
[419981727,1775582457522,-874.89,0.0001157,2]
[419981728,1775582460463,-2094.57,0.0001157,2]
[419981729,1775582460495,-300.0,0.00011606,2]
[419981730,1775582460526,-2437.5745,0.00011607,2]
[419981731,1775582466668,-521.66966268,0.00011696,2]
[419981732,1775582466698,-300.0,0.00011704,2]
[419981733,1775582466727,-150.0,0.00011704,2]
[419981734,1775582466756,-300.0,0.00011704,2]
[419981735,1775582466785,-500.0,0.00011705,2]
[419981736,1775582466812,-500.0,0.00011705,2]
[419981737,1775582466842,-269.61724881,0.00011705,2]
[419981738,1775582466874,-258.12493407,0.00011705,2]
[419981739,1775582466904,-398.77878696,0.00011705,2]
[419981740,1775582466932,-500.0,0.00011705,2]
[419981741,1775582466960,-500.0,0.00011705,2]
[419981742,1775582466990,-320.36917016,0.00011705,2]
[419981743,1775582467025,-462.89039464,0.00011705,2]
[419981762,1775582611057,-4045.304,0.00011472,2]
[419981763,1775582611089,-229.275,0.00011472,2]
[419981764,1775582613915,-5000.0,0.00011589,2]
[419981765,1775582617749,0.01,0.000117,2]
[419981766,1775582619971,-199.99,0.000117,2]
[419981767,1775582692783,-300.0,0.00011705,2]
[419981768,1775582692812,-150.0,0.00011705,2]
[419981769,1775582692841,-300.0,0.00011705,2]
[419981770,1775582692870,-300.0,0.00011705,2]
[419981771,1775582692899,-500.0,0.00011705,2]
[419981772,1775582692927,-274.25841911,0.00011705,2]
[419981773,1775582692956,-500.0,0.00011705,2]
[419981774,1775582692990,-500.0,0.00011705,2]
[419981775,1775582693023,-500.0,0.00011705,2]
[419981776,1775582693056,-500.0,0.00011705,2]
[419981777,1775582693089,-500.0,0.00011705,2]
[419981778,1775582693122,-500.0,0.00011705,2]
[419981779,1775582699147,-500.0,0.00011705,2]
[419981780,1775582699182,-500.0,0.00011705,2]
[419981781,1775582699218,-500.0,0.00011705,2]
[419981782,1775582699254,-500.0,0.00011705,2]
[419981783,1775582699290,-500.0,0.00011705,2]
[419981784,1775582699327,-500.0,0.00011705,2]
[419981785,1775582699363,-500.0,0.00011705,2]
[419981786,1775582699398,-500.0,0.00011705,2]
[419981787,1775582699437,-500.0,0.00011705,2]
[419981788,1775582699473,-500.0,0.00011705,2]
[419981789,1775582705010,-1200.0,0.00011704,2]
[419981790,1775582705043,-500.0,0.00011705,2]
[419981791,1775582705077,-500.0,0.00011705,2]
[419981792,1775582705125,-500.0,0.00011705,2]
[419981793,1775582705163,-511.58380893,0.00011705,2]
[419981794,1775582705199,-500.0,0.00011705,2]
[419981795,1775582705234,-500.0,0.00011705,2]
[419981796,1775582705268,-500.0,0.00011705,2]
[419981797,1775582705303,-76.84238214,0.00011705,2]
[419981800,1775582769788,-300.0,0.00011704,2]
[419981801,1775582769819,-600.0,0.00011705,2]
[419981802,1775582769854,-423.15761786,0.00011705,2]
[419981803,1775582769889,-500.0,0.00011705,2]
[419981804,1775582769925,-500.0,0.00011705,2]
[419981805,1775582769959,-500.0,0.00011705,2]
[419981806,1775582769995,-500.0,0.00011705,2]
[419981807,1775582770029,-500.0,0.00011705,2]
[419981808,1775582770063,-500.0,0.00011705,2]
[419981809,1775582770100,-500.0,0.00011705,2]
[419981810,1775582778259,-3862.36162648,0.00011606,2]
[419981811,1775582784375,-2275.28674704,0.00011606,2]
[419981812,1775582784407,-249.61,0.00011705,2]
[419981813,1775582784442,-500.0,0.00011705,2]
[419981814,1775582784477,-500.0,0.00011705,2]
[419981815,1775582784509,-500.0,0.00011705,2]
[419981816,1775582784538,-188.73207417,0.00011705,2]
[419981817,1775582784571,-500.0,0.00011705,2]
[419981818,1775582784761,-600.0,0.00011705,2]
[419981819,1775582784796,-500.0,0.00011705,2]
[419981820,1775582784831,-500.0,0.00011705,2]
[419981821,1775582784865,-500.0,0.00011705,2]
[419981822,1775582784901,-500.0,0.00011705,2]
[419981823,1775582784938,-500.0,0.00011705,2]
[419981824,1775582784971,-629.14515087,0.00011705,2]
[419981825,1775582785004,-180.68745385,0.00011705,2]
[419981827,1775582806847,-4456.49089632,0.00011706,2]
[419981828,1775582806909,-10000.01,0.00011706,2]
[419981829,1775582807044,-10000.01,0.00011706,2]
[419981830,1775582812905,-183.02269796,0.00011606,2]
[419981831,1775582812943,-9633.96460408,0.00011706,2]
[419981832,1775582818899,-10000.01,0.00011706,2]
[419981849,1775582956122,-500.0,0.00011605,2]
[419981850,1775582956146,-1350.42872094,0.00011606,2]
[419981851,1775582956168,-464.09627506,0.00011606,2]
[419981858,1775583033168,-3010.13875846,0.00011598,2]
[419981859,1775583033179,-300.0,0.00011605,2]
[419981860,1775583033191,-1200.0,0.00011605,2]
[419981861,1775583033201,-150.0,0.00011605,2]
[419981862,1775583033211,-300.0,0.00011605,2]
[419981863,1775583033222,-265.07702332,0.00011606,2]
[419981864,1775583033233,-9660.00353731,0.00011606,2]
[419981865,1775583033243,-12301.14132494,0.00011606,2]
[419981866,1775583033253,-18142.14249104,0.00011606,2]
[419981867,1775583033265,-1857.87750896,0.00011606,2]
[419981868,1775583033286,-200.0,0.000117,2]
[419981869,1775583033298,-200.0,0.000117,2]
[419981870,1775583033308,-440.40160561,0.00011705,2]
[419981871,1775583033319,-391.98089338,0.00011705,2]
[419981872,1775583033329,-500.0,0.00011705,2]
[419981873,1775583033339,-500.0,0.00011705,2]
[419981874,1775583033349,-500.0,0.00011705,2]
[419981875,1775583033359,-500.0,0.00011705,2]
[419981876,1775583033369,-435.68125907,0.00011705,2]
[419981877,1775583033380,-18198.53905965,0.00011706,2]
[419981878,1775583033403,-485166.16820734,0.00011706,2]
[419981879,1775583033417,-81030.15829149,0.00011706,2]
[419981880,1775583033429,-7050.56922555,0.00011706,2]
[419981881,1775583033442,-119166.25517818,0.00011706,2]
[419981882,1775583033456,-1254.41808677,0.00011706,2]
[419981896,1775583038282,-4361.88430479,0.00011706,2]
[419981897,1775583038295,-1709444.81642822,0.00011706,2]
[419981898,1775583038305,-150.0,0.00011706,2]
[419981899,1775583038315,-212.44,0.00011811,2]
[419981900,1775583038326,-150.0,0.00011811,2]
[419981901,1775583038336,-150.0,0.00011811,2]
[419981902,1775583038346,-2969.46,0.0001192,2]
[419981903,1775583038357,-249.61,0.00011979,2]
[419981904,1775583038367,-164.24,0.00012038,2]
[419981905,1775583038376,-6137.64837351,0.00012083,2]
[419981906,1775583038387,-9660.00353722,0.00012083,2]
[419981907,1775583038397,-150.0,0.000121,2]
[419981908,1775583038407,-299.99,0.000121,2]
[419981909,1775583038416,-29999.99,0.00012103,2]
[419981910,1775583038427,-6433.56,0.00012103,2]
[419981911,1775583038437,-150.99,0.00012103,2]
[419981912,1775583038448,-9999.99,0.00012168,2]
[419981913,1775583038460,-996.0,0.00012181,2]
[419981914,1775583038471,-938.0,0.00012206,2]
[419981915,1775583038481,-824.0,0.0001223,2]
[419981916,1775583038491,-249.61,0.00012253,2]
[419981917,1775583038500,-1446.0,0.00012254,2]
[419981918,1775583038510,-2969.46,0.00012271,2]
[419981919,1775583038519,-2540.07,0.00012316,2]
[419981920,1775583038530,-150.0,0.00012329,2]
[419981921,1775583038540,-150.0,0.00012329,2]
[419981922,1775583038555,-150.0,0.00012329,2]
[419981923,1775583038565,-150.0,0.00012329,2]
[419981924,1775583038574,-150.0,0.00012329,2]
[419981925,1775583038585,-150.0,0.00012329,2]
[419981926,1775583038594,-150.0,0.00012329,2]
[419981927,1775583038604,-150.0,0.00012329,2]
[419981928,1775583038614,-150.0,0.00012329,2]
[419981929,1775583038624,-150.0,0.00012329,2]
[419981930,1775583038634,-150.0,0.00012329,2]
[419981931,1775583038644,-150.0,0.00012329,2]
[419981932,1775583038654,-150.0,0.00012401,2]
[419981933,1775583038663,-150.0,0.00012414,2]
[419981934,1775583038673,-500.0,0.00012415,2]
[419981935,1775583038683,-150.0,0.00012443,2]
[419981936,1775583038693,-150.0,0.00012466,2]
[419981937,1775583038703,-150.0,0.00012473,2]
[419981939,1775583038714,-1000.0,0.00012492,2]
[419981941,1775583038723,-150.0,0.000125,2]
[419981943,1775583038733,-150.0,0.000125,2]
[419981945,1775583038743,-150.0,0.000125,2]
[419981947,1775583038752,-249.61,0.00012527,2]
[419981948,1775583038762,-150.0,0.00012545,2]
[419981949,1775583038773,-150.0,0.00012557,2]
[419981950,1775583038784,-150.0,0.00012557,2]
[419981951,1775583038794,-150.0,0.00012557,2]
[419981952,1775583038805,-6137.64837351,0.0001256,2]
[419981953,1775583038815,-9660.00353722,0.0001256,2]
[419981954,1775583038825,-150.0,0.00012586,2]
[419981955,1775583038836,-150.0,0.00012603,2]
[419981956,1775583038845,-150.0,0.00012617,2]
[419981957,1775583038855,-2683.33576369,0.00012618,2]
[419981958,1775583038865,-2969.46,0.00012622,2]
[419981959,1775583038875,-150.0,0.00012641,2]
[419981960,1775583038885,-150.0,0.00012671,2]
[419981961,1775583039509,-150.0,0.00012671,2]
[419981962,1775583039520,-150.0,0.00012671,2]
[419981963,1775583039530,-150.0,0.00012671,2]
[419981964,1775583039539,-150.0,0.00012671,2]
[419981965,1775583039549,-255.0,0.00012673,2]
[419981966,1775583039559,-500.0,0.00012688,2]
[419981967,1775583039569,-150.0,0.00012689,2]
[419981968,1775583039578,-447.22262728,0.00012732,2]
[419981969,1775583039587,-150.0,0.0001274,2]
[419981970,1775583039596,-420.0,0.00012745,2]
[419981971,1775583039605,-420.0,0.00012745,2]
[419981972,1775583039615,-150.0,0.00012757,2]
[419981973,1775583039624,-250.0,0.00012758,2]
[419981974,1775583039634,-150.0,0.00012761,2]
[419981975,1775583039644,-5000.0,0.00012765,2]
[419981976,1775583039654,-5000.0,0.00012766,2]
[419981977,1775583039663,-250.0,0.00012766,2]
[419981978,1775583039673,-1680.0,0.00012766,2]
[419981979,1775583039683,-150.0,0.00012785,2]
[419981980,1775583039693,-150.0,0.00012785,2]
[419981981,1775583039703,-150.0,0.00012785,2]
[419981982,1775583039712,-249.66,0.00012801,2]
[419981983,1775583039722,-1350.42872094,0.00012833,2]
[419981984,1775583039731,-150.0,0.00012833,2]
[419981985,1775583039741,-150.0,0.00012842,2]
[419981986,1775583039751,-150.0,0.00012842,2]
[419981987,1775583039761,-150.0,0.00012842,2]
[419981988,1775583039771,-447.22262728,0.00012858,2]
[419981989,1775583039780,-5000.0,0.00012874,2]
[419981990,1775583039790,-600.0,0.00012874,2]
[419981991,1775583039800,-250.0,0.00012876,2]
[419981992,1775583039810,-193.0,0.00012877,2]
[419981993,1775583039820,-467.93186662,0.00012877,2]
[419981994,1775583039829,-150.0,0.00012877,2]
[419981995,1775583039839,-160.0,0.00012888,2]
[419981996,1775583039849,-1719.828993,0.00012888,2]
[419981997,1775583039858,-3279.657986,0.00012888,2]
[419981998,1775583039868,-150.0,0.000129,2]
[419981999,1775583039878,-150.0,0.00012906,2]
[419982000,1775583039888,-150.0,0.00012928,2]
[419982001,1775583039898,-500.0,0.00012962,2]
[419982002,1775583039908,-2969.46,0.00012972,2]
[419982003,1775583039918,-150.0,0.00012978,2]
[419982004,1775583039928,-447.22262728,0.00012984,2]
[419982005,1775583039937,-250.0,0.00013,2]
[419982006,1775583039947,-150.0,0.00013014,2]
[419982007,1775583039956,-150.0,0.00013014,2]
[419982008,1775583039966,-150.0,0.00013014,2]
[419982009,1775583039976,-150.0,0.00013014,2]
[419982010,1775583039985,-150.0,0.00013014,2]
[419982011,1775583039996,-150.0,0.00013014,2]
[419982012,1775583040006,-150.0,0.00013014,2]
[419982013,1775583040016,-150.0,0.00013014,2]
[419982014,1775583040026,-6137.64837351,0.00013037,2]
[419982015,1775583040036,-9660.00353722,0.00013037,2]
[419982016,1775583040047,-150.0,0.0001305,2]
[419982017,1775583040057,-1452.51091859,0.00013051,2]
[419982018,1775583040067,-150.0,0.00013099,2]
[419982019,1775583040077,-501.0,0.000131,2]
[419982020,1775583040088,-150.0,0.00013122,2]
[419982021,1775583040097,-150.0,0.00013128,2]
[419982022,1775583040107,-150.0,0.00013151,2]
[419982023,1775583040116,-500.0,0.00013151,2]
[419982024,1775583040126,-165.41506208,0.00013151,2]
[419982025,1775583040136,-500.0,0.00013151,2]
[419982026,1775583040146,-500.0,0.00013151,2]
[419982027,1775583040156,-500.0,0.00013151,2]
[419982028,1775583040166,-500.0,0.00013151,2]
[419982029,1775583040176,-571.50758087,0.00013151,2]
[419982030,1775583040185,-150.56006719,0.00013151,2]
[419982031,1775583040195,-150.1380317,0.00013151,2]
[419982032,1775583040204,-150.86704319,0.00013151,2]
[419982033,1775583040215,-500.0,0.00013151,2]
[419982034,1775583040226,-500.0,0.00013151,2]
[419982035,1775583040236,-500.0,0.00013151,2]
[419982036,1775583040246,-258.35962106,0.00013151,2]
[419982037,1775583040255,-500.0,0.00013151,2]
[419982038,1775583040265,-500.0,0.00013151,2]
[419982039,1775583040275,-150.0,0.00013151,2]
[419982040,1775583040285,-500.0,0.00013151,2]
[419982041,1775583040295,-150.0,0.00013151,2]
[419982042,1775583040305,-500.0,0.00013151,2]
[419982043,1775583040316,-150.0,0.00013151,2]
[419982044,1775583040326,-500.0,0.00013151,2]
[419982045,1775583040336,-181.70252141,0.00013151,2]
[419982046,1775583040346,-500.0,0.00013151,2]
[419982047,1775583040356,-500.0,0.00013151,2]
[419982048,1775583040366,-594.20670319,0.00013151,2]
[419982049,1775583040376,-500.0,0.00013151,2]
[419982050,1775583040386,-500.0,0.00013151,2]
[419982051,1775583040397,-150.0,0.00013151,2]
[419982052,1775583040407,-500.0,0.00013151,2]
[419982053,1775583040417,-414.12404802,0.00013151,2]
[419982054,1775583040427,-153.24085071,0.00013151,2]
[419982055,1775583040437,-266.52915409,0.00013151,2]
[419982056,1775583040447,-150.0,0.00013151,2]
[419982057,1775583040459,-500.0,0.00013151,2]
[419982058,1775583040468,-500.0,0.00013151,2]
[419982059,1775583040478,-500.0,0.00013151,2]
[419982060,1775583040488,-500.0,0.00013151,2]
[419982061,1775583040498,-500.0,0.00013151,2]
[419982062,1775583040509,-500.0,0.00013151,2]
[419982063,1775583040518,-500.0,0.00013151,2]
[419982064,1775583040529,-500.0,0.00013151,2]
[419982065,1775583040539,-500.0,0.00013151,2]
[419982066,1775583040550,-500.0,0.00013151,2]
[419982067,1775583040560,-500.0,0.00013151,2]
[419982068,1775583040571,-232.18984881,0.00013151,2]
[419982069,1775583040582,-524.8115188,0.00013151,2]
[419982070,1775583040592,-500.0,0.00013151,2]
[419982071,1775583040602,-500.0,0.00013151,2]
[419982072,1775583040611,-500.0,0.00013151,2]
[419982073,1775583040621,-500.0,0.00013151,2]
[419982074,1775583040632,-500.0,0.00013151,2]
[419982075,1775583040642,-499.0702747,0.00013151,2]
[419982076,1775583040651,-500.0,0.00013151,2]
[419982077,1775583040661,-150.0,0.00013151,2]
[419982078,1775583040671,-500.0,0.00013151,2]
[419982079,1775583040680,-500.0,0.00013151,2]
[419982080,1775583040690,-150.0,0.00013151,2]
[419982081,1775583040700,-150.0,0.00013151,2]
[419982082,1775583040710,-500.0,0.00013151,2]
[419982083,1775583040720,-500.0,0.00013151,2]
[419982084,1775583040729,-289.89258684,0.00013151,2]
[419982085,1775583040739,-500.0,0.00013151,2]
[419982086,1775583040748,-500.0,0.00013151,2]
[419982087,1775583040758,-500.0,0.00013151,2]
[419982088,1775583040768,-500.0,0.00013151,2]
[419982089,1775583040777,-271.63434396,0.00013151,2]
[419982090,1775583040786,-500.0,0.00013151,2]
[419982091,1775583040796,-500.0,0.00013151,2]
[419982092,1775583040805,-500.0,0.00013151,2]
[419982093,1775583040815,-150.0,0.00013151,2]
[419982094,1775583040825,-500.0,0.00013151,2]
[419982095,1775583040835,-150.0,0.00013151,2]
[419982096,1775583040845,-500.0,0.00013151,2]
[419982097,1775583040855,-150.0,0.00013151,2]
[419982098,1775583040865,-500.0,0.00013151,2]
[419982099,1775583040875,-500.0,0.00013151,2]
[419982100,1775583040884,-150.0,0.00013151,2]
[419982101,1775583040893,-500.0,0.00013151,2]
[419982102,1775583040902,-500.0,0.00013151,2]
[419982103,1775583040912,-150.0,0.00013151,2]
[419982104,1775583040922,-500.0,0.00013151,2]
[419982105,1775583040931,-250.0,0.00013151,2]
[419982106,1775583040941,-500.0,0.00013151,2]
[419982107,1775583040951,-500.0,0.00013151,2]
[419982108,1775583040960,-220.30165745,0.00013151,2]
[419982109,1775583040970,-150.0,0.00013151,2]
[419982110,1775583040980,-500.0,0.00013151,2]
[419982111,1775583040990,-500.0,0.00013151,2]
[419982112,1775583041000,-500.0,0.00013151,2]
[419982113,1775583041011,-500.0,0.00013151,2]
[419982114,1775583041020,-329.41546349,0.00013151,2]
[419982115,1775583041030,-500.0,0.00013151,2]
[419982116,1775583041039,-500.0,0.00013151,2]
[419982117,1775583041049,-500.0,0.00013151,2]
[419982118,1775583041060,-500.0,0.00013151,2]
[419982119,1775583041071,-500.0,0.00013151,2]
[419982120,1775583041081,-150.0,0.00013151,2]
[419982121,1775583041091,-500.0,0.00013151,2]
[419982122,1775583041101,-150.0,0.00013151,2]
[419982123,1775583041110,-360.01646101,0.00013151,2]
[419982124,1775583041119,-150.0,0.00013151,2]
[419982125,1775583041130,-150.0,0.00013151,2]
[419982126,1775583041141,-150.0,0.00013151,2]
[419982127,1775583041151,-156.32549117,0.00013151,2]
[419982128,1775583041162,-1538.0,0.00013151,2]
[419982129,1775583041173,-1538.0,0.00013151,2]
[419982130,1775583041182,-1538.0,0.00013151,2]
[419982131,1775583041193,-1538.0,0.00013151,2]
[419982132,1775583041202,-1538.0,0.00013151,2]
[419982133,1775583041213,-1538.0,0.00013151,2]
[419982134,1775583041223,-1538.0,0.00013151,2]
[419982135,1775583041233,-1538.0,0.00013151,2]
[419982136,1775583041243,-1538.0,0.00013151,2]
[419982137,1775583041253,-1538.0,0.00013151,2]
[419982138,1775583041263,-1538.0,0.00013151,2]
[419982139,1775583041273,-1538.0,0.00013151,2]
[419982140,1775583041283,-1538.0,0.00013151,2]
[419982141,1775583041293,-1538.0,0.00013151,2]
[419982142,1775583041303,-1538.0,0.00013151,2]
[419982143,1775583041313,-1538.0,0.00013151,2]
[419982144,1775583041323,-1538.0,0.00013151,2]
[419982145,1775583041334,-1538.0,0.00013151,2]
[419982146,1775583041344,-1538.0,0.00013151,2]
[419982147,1775583041353,-1538.0,0.00013151,2]
[419982148,1775583041364,-1538.0,0.00013151,2]
[419982149,1775583041374,-1538.0,0.00013151,2]
[419982150,1775583041385,-1538.0,0.00013151,2]
[419982151,1775583041395,-500.0,0.00013151,2]
[419982152,1775583041410,-1553.30229004,0.00013151,2]
[419982153,1775583041420,-500.0,0.00013151,2]
[419982154,1775583041430,-500.0,0.00013151,2]
[419982155,1775583041440,-500.0,0.00013151,2]
[419982156,1775583041449,-500.0,0.00013151,2]
[419982157,1775583041461,-500.0,0.00013151,2]
[419982158,1775583041471,-500.0,0.00013151,2]
[419982159,1775583041481,-397.72162059,0.00013151,2]
[419982160,1775583041491,-500.0,0.00013151,2]
[419982161,1775583041501,-500.0,0.00013151,2]
[419982162,1775583041510,-338.64365037,0.00013151,2]
[419982163,1775583041519,-500.0,0.00013151,2]
[419982164,1775583041529,-385.20384257,0.00013151,2]
[419982165,1775583041539,-160.0,0.00013156,2]
[419982166,1775583041552,-1111.514506,0.00013156,2]
[419982167,1775583041562,-2063.029013,0.00013156,2]
[419982168,1775583041571,-160.0,0.00013156,2]
[419982169,1775583041581,-310.073332,0.00013156,2]
[419982170,1775583041590,-160.0,0.00013156,2]
[419982171,1775583041600,-460.146664,0.00013156,2]
[419982172,1775583041610,-1646.499934,0.00013156,2]
[419982173,1775583041619,-3132.999869,0.00013156,2]
[419982174,1775583041628,-160.0,0.00013156,2]
[419982175,1775583041638,-470.093652,0.00013156,2]
[419982176,1775583041648,-780.187305,0.00013156,2]
[419982177,1775583041658,-150.0,0.00013185,2]
[419982178,1775583041668,-150.0,0.00013185,2]
[419982179,1775583041678,-150.0,0.00013185,2]
[419982180,1775583041688,-150.0,0.00013194,2]
[419982181,1775583041698,-500.0,0.00013236,2]
[419982182,1775583041708,-150.0,0.00013242,2]
[419982183,1775583041718,-150.0,0.00013242,2]
[419982184,1775583041728,-150.0,0.00013242,2]
[419982185,1775583041738,-150.0,0.00013266,2]
[419982186,1775583041748,-150.0,0.00013271,2]
[419982187,1775583041758,-150.0,0.00013288,2]
[419982188,1775583041767,-2969.46,0.00013323,2]
[419982189,1775583041778,-19925.0006802,0.00013324,2]
[419982190,1775583041789,-150.0,0.00013338,2]
[419982191,1775583041799,-150.0,0.00013356,2]
[419982192,1775583041809,-150.0,0.00013356,2]
[419982193,1775583041818,-150.0,0.00013356,2]
[419982194,1775583041829,-150.0,0.00013356,2]
[419982195,1775583041838,-150.0,0.00013356,2]
[419982196,1775583041847,-167.7335,0.000134,2]
[419982197,1775583041857,-150.0,0.0001341,2]
[419982198,1775583041866,-151.16271487,0.00013424,2]
[419982199,1775583041876,-500.0,0.00013424,2]
[419982200,1775583041886,-500.0,0.00013424,2]
[419982201,1775583041895,-500.0,0.00013424,2]
[419982202,1775583041904,-500.0,0.00013424,2]
[419982203,1775583041913,-500.0,0.00013424,2]
[419982204,1775583041923,-150.0,0.00013424,2]
[419982205,1775583041932,-278.57606632,0.00013424,2]
[419982206,1775583041941,-150.0,0.00013424,2]
[419982207,1775583041950,-729.0,0.00013424,2]
[419982208,1775583041959,-150.0,0.00013424,2]
[419982209,1775583041968,-729.0,0.00013424,2]
[419982210,1775583041978,-150.0,0.00013424,2]
[419982211,1775583041987,-729.0,0.00013424,2]
[419982212,1775583041998,-274.28711703,0.00013424,2]
[419982213,1775583042008,-729.0,0.00013424,2]
[419982214,1775583042018,-729.0,0.00013424,2]
[419982215,1775583042027,-500.0,0.00013424,2]
[419982216,1775583042037,-729.0,0.00013424,2]
[419982217,1775583042048,-516.75450482,0.00013424,2]
[419982218,1775583042058,-729.0,0.00013424,2]
[419982219,1775583042067,-500.0,0.00013424,2]
[419982220,1775583042077,-729.0,0.00013424,2]
[419982221,1775583042088,-500.0,0.00013424,2]
[419982222,1775583042097,-729.0,0.00013424,2]
[419982223,1775583042107,-500.0,0.00013424,2]
[419982224,1775583042117,-729.0,0.00013424,2]
[419982225,1775583042127,-642.81768611,0.00013424,2]
[419982226,1775583042137,-729.0,0.00013424,2]
[419982227,1775583042147,-500.0,0.00013424,2]
[419982228,1775583042158,-500.0,0.00013424,2]
[419982229,1775583042168,-729.0,0.00013424,2]
[419982230,1775583042178,-500.0,0.00013424,2]